fUSD/lending_fUSD_20260121
["ID","MTS","AMOUNT","RATE_DAILY","PERIOD"]
[402906414,1768977031972,-290.0,0.00016671,2]
[402906416,1768977031989,-165.6,0.00016671,2]
[402906417,1768977032010,-290.0569597,0.00016703,2]
[402906418,1768977032030,-9.9430403,0.00016703,2]
[402906419,1768977032039,-300.0,0.00016795,2]
[402906420,1768977032048,-300.0,0.00016795,2]
[402906421,1768977032058,-300.0,0.00016795,2]
[402906422,1768977032068,-300.0,0.00016797,2]
[402906423,1768977032077,-300.0,0.00016797,2]
[402906424,1768977032086,-498.0569597,0.00016797,2]
[402906425,1768977032097,-701.9430403,0.00016797,2]
[402906426,1768977032107,-450.0,0.00016797,2]
[402906427,1768977032116,-234159.35264714,0.00016798,2]
[402906428,1768977032127,-4445.8780109,0.00016798,2]
[402906429,1768977032138,-30661.58822682,0.00016798,2]
[402906430,1768977032164,-748.49075811,0.00016798,2]
[402906431,1768977032175,-6911.30768629,0.00016798,2]
[402906432,1768977032186,-454.55387908,0.00016798,2]
[402906433,1768977032197,-3055.63044215,0.00016798,2]
[402906434,1768977032227,-8786.69525022,0.00016798,2]
[402906435,1768977032237,-1067.80442726,0.00016798,2]
[402906436,1768977032248,-451.0,0.00016798,2]
[402906460,1768977032556,-2144.44612092,0.00016798,2]
[402906463,1768977032568,-2637.03630639,0.00016798,2]
[402906464,1768977032579,-8361.29893673,0.00016798,2]
[402906465,1768977032590,-3773.8207,0.00016798,2]
[402906466,1768977034760,161.0,0.0001641,2]
[402906468,1768977038111,-242.6881512,0.00016797,2]
[402906469,1768977038120,-500.0,0.00016797,2]
[402906470,1768977038130,-484.91530545,0.00016797,2]
[402906471,1768977038139,-414.75578128,0.00016797,2]
[402906472,1768977038149,-500.0,0.00016797,2]
[402906473,1768977038158,-245.81388859,0.00016797,2]
[402906474,1768977038167,-551.64705186,0.00016797,2]
[402906475,1768977038176,-356.19208971,0.00016797,2]
[402906476,1768977038192,-143.80791029,0.00016797,2]
[402906477,1768977038201,-500.0,0.00016797,2]
[402906478,1768977038211,-500.0,0.00016797,2]
[402906479,1768977038221,-500.0,0.00016797,2]
[402906480,1768977038230,-500.0,0.00016797,2]
[402906481,1768977038240,-500.0,0.00016797,2]
[402906482,1768977038249,-453.12835319,0.00016797,2]
[402906483,1768977038258,-400.57459155,0.00016797,2]
[402906484,1768977038267,-1937.39910814,0.00016798,2]
[402906485,1768977038279,-40750.444,0.00016798,2]
[402906487,1768977038291,-8355.461751,0.00016798,2]
[402906490,1768977038302,-35983.65509141,0.00016798,2]
[402906493,1768977038324,-10397.31809474,0.00016798,2]
[402906495,1768977038335,-369755.2176627,0.00016798,2]
[402906497,1768977038345,-400.0,0.000168,6]
[402906499,1768977038354,-150.00720389,0.00016828,2]
[402906501,1768977038364,-11992.72511367,0.00016888,2]
[402906504,1768977038373,-1000.0,0.00016898,2]
[402906507,1768977038383,-3221.8766,0.00016898,2]
[402906509,1768977038392,-1500.5782,0.00016898,2]
[402906512,1768977038401,-554.40683796,0.00016899,2]
[402906514,1768977038411,-900.0,0.000169,6]
[402906516,1768977038423,-297.08,0.00016938,2]
[402906518,1768977038434,-452.11,0.00016938,2]
[402906520,1768977038443,-999.99,0.00016938,2]
[402906522,1768977038452,-9999.99,0.00016938,2]
[402906524,1768977038462,-9999.99,0.00016938,2]
[402906526,1768977038471,-9999.99,0.00016938,2]
[402906528,1768977038480,-299.99,0.00016988,4]
[402906530,1768977038490,-4999.99,0.00016988,2]
[402906532,1768977038500,-1253.99,0.00016988,2]
[402906534,1768977038509,-19999.99,0.00016988,2]
[402906536,1768977038518,-151.0,0.00016988,2]
[402906538,1768977038528,-500.0,0.00016988,2]
[402906540,1768977038537,-151.0,0.00016988,2]
[402906542,1768977038546,-500.0,0.00016988,2]
[402906544,1768977038556,-151.0,0.00016988,2]
[402906546,1768977038565,-500.0,0.00016988,2]
[402906548,1768977038574,-151.0,0.00016988,2]
[402906550,1768977038584,-500.0,0.00016988,2]
[402906552,1768977038592,-151.0,0.00016988,2]
[402906554,1768977038601,-214.48234601,0.00016988,2]
[402906556,1768977038611,-500.0,0.00016988,2]
[402906558,1768977038621,-200.0,0.00016988,2]
[402906560,1768977038631,-500.0,0.00016997,2]
[402906562,1768977038640,-525.29097459,0.00016997,2]
[402906564,1768977038650,-500.0,0.00016997,2]
[402906565,1768977038659,-511.30863973,0.00016997,2]
[402906567,1768977038669,-500.0,0.00016997,2]
[402906569,1768977038678,-500.0,0.00016997,2]
[402906571,1768977038688,-500.0,0.00016997,2]
[402906573,1768977038697,-500.0,0.00016997,2]
[402906575,1768977038707,-289.14683953,0.00016997,2]
[402906577,1768977038716,-657.566,0.00016997,2]
[402906579,1768977038726,-163.9,0.00016997,2]
[402906581,1768977038736,-500.0,0.00016997,2]
[402906583,1768977038747,-500.0,0.00016997,2]
[402906585,1768977038756,-500.0,0.00016997,2]
[402906587,1768977038765,-500.0,0.00016997,2]
[402906589,1768977038776,-500.0,0.00016997,2]
[402906591,1768977038786,-500.0,0.00016997,2]
[402906593,1768977038795,-500.0,0.00016997,2]
[402906595,1768977038804,-500.0,0.00016997,2]
[402906597,1768977038813,-500.0,0.00016997,2]
[402906599,1768977038822,-500.0,0.00016997,2]
[402906601,1768977038832,-509.1441621,0.00016997,2]
[402906603,1768977038841,-500.0,0.00016997,2]
[402906605,1768977038851,-500.0,0.00016997,2]
[402906607,1768977038861,-500.0,0.00016997,2]
[402906609,1768977038871,-500.0,0.00016997,2]
[402906611,1768977038881,-500.0,0.00016997,2]
[402906613,1768977038891,-500.0,0.00016997,2]
[402906615,1768977038900,-500.0,0.00016997,2]
[402906617,1768977038910,-500.0,0.00016997,2]
[402906619,1768977038919,-500.0,0.00016997,2]
[402906621,1768977038928,-179.41357912,0.00016997,2]
[402906623,1768977038938,-33234.7286,0.00016999,2]
[402906625,1768977038947,-417.5544,0.00016999,2]
[402906627,1768977038957,-11992.72511367,0.00017,2]
[402906629,1768977038966,-554.40683791,0.00017045,2]
[402906630,1768977038976,-2000.0,0.00017099,2]
[402906632,1768977038986,-2000.0,0.00017099,2]
[402906634,1768977038996,-2000.0,0.00017099,2]
[402906637,1768977039006,-159.75281008,0.00017099,2]
[402906639,1768977039015,-2000.0,0.00017099,2]
[402906640,1768977039025,-2000.0,0.00017099,2]
[402906642,1768977039034,-2000.0,0.00017099,2]
[402906644,1768977039044,-1000.0,0.00017099,2]
[402906646,1768977039054,-2000.0,0.00017099,2]
[402906648,1768977039064,-1000.0,0.00017099,2]
[402906650,1768977039074,-2000.0,0.00017099,2]
[402906653,1768977039084,-1000.0,0.00017099,2]
[402906655,1768977039094,-2000.0,0.00017099,2]
[402906657,1768977039103,-1000.0,0.00017099,2]
[402906659,1768977039112,-2000.0,0.00017099,2]
[402906661,1768977039122,-1000.0,0.00017099,2]
[402906663,1768977039132,-2000.0,0.00017099,2]
[402906665,1768977039141,-1000.0,0.00017099,2]
[402906667,1768977039150,-2000.0,0.00017099,2]
[402906669,1768977039159,-1000.0,0.00017099,2]
[402906671,1768977039169,-2000.0,0.00017099,2]
[402906673,1768977039178,-1000.0,0.00017099,2]
[402906675,1768977039187,-2000.0,0.00017099,2]
[402906677,1768977039196,-1040.86136248,0.00017099,2]
[402906679,1768977039205,-2000.0,0.00017099,2]
[402906681,1768977039215,-2000.0,0.00017099,2]
[402906683,1768977039223,-2567.0,0.00017099,2]
[402906685,1768977039233,-198.35,0.00017111,2]
[402906686,1768977039242,-11992.72511367,0.00017113,2]
[402906688,1768977039252,-151.0,0.00017183,2]
[402906690,1768977039261,-151.0,0.00017183,2]
[402906693,1768977039270,-554.40683791,0.0001719,2]
[402906694,1768977039279,-11992.72511367,0.00017225,2]
[402906696,1768977039288,-965.82,0.00017233,2]
[402906698,1768977039298,-554.40683791,0.00017336,2]
[402906700,1768977039307,-11992.72511367,0.00017338,2]
[402906703,1768977039316,-11992.72511367,0.0001745,2]
[402906705,1768977039325,-554.40683791,0.00017482,2]
[402906706,1768977039334,-500.0,0.00017536,2]
[402906709,1768977039343,-15264.70354698,0.00017555,2]
[402906711,1768977039353,-11992.72511367,0.00017563,2]
[402906712,1768977039363,-1300.0,0.000176,6]
[402906714,1768977039372,-400.0,0.00017622,2]
[402906715,1768977039381,-554.40683791,0.00017628,2]
[402906716,1768977039390,-3365.50428472,0.0001764,2]
[402906717,1768977039399,-11992.72511367,0.00017675,2]
[402906718,1768977039408,-781.24543487,0.000177,2]
[402906719,1768977039419,-1800.0,0.000177,6]
[402906720,1768977039428,-500.0,0.00017726,2]
[402906721,1768977039437,-500.0,0.00017726,2]
[402906722,1768977039446,-500.0,0.00017726,2]
[402906723,1768977039455,-500.0,0.00017726,2]
[402906724,1768977039464,-500.0,0.00017726,2]
[402906725,1768977039473,-500.0,0.00017726,2]
[402906726,1768977039482,-500.0,0.00017726,2]
[402906727,1768977039492,-150.0,0.00017726,2]
[402906728,1768977039501,-500.0,0.00017726,2]
[402906729,1768977039510,-554.40683791,0.00017773,2]
[402906730,1768977039519,-500.0,0.00017781,2]
[402906731,1768977039528,-500.0,0.00017781,2]
[402906733,1768977039537,-500.0,0.00017781,2]
[402906734,1768977039545,-500.0,0.00017781,2]
[402906736,1768977039555,-500.0,0.00017781,2]
[402906738,1768977039563,-500.0,0.00017781,2]
[402906740,1768977039572,-500.0,0.00017781,2]
[402906742,1768977039581,-155.67266421,0.00017781,2]
[402906744,1768977039590,-507.3490248,0.00017781,2]
[402906746,1768977039599,-11992.72511367,0.00017788,2]
[402906748,1768977039608,-4951.73030725,0.000178,2]
[402906750,1768977039618,-2300.0,0.000178,6]
[402906752,1768977039627,-168.0,0.00017822,2]
[402906754,1768977039635,-237.16668933,0.00017836,2]
[402906756,1768977039644,-500.0,0.00017836,2]
[402906758,1768977039654,-500.0,0.00017836,2]
[402906760,1768977039663,-396.5190321,0.00017836,2]
[402906762,1768977039673,-500.0,0.00017836,2]
[402906764,1768977039682,-500.0,0.00017836,2]
[402906766,1768977039691,-500.0,0.00017836,2]
[402906768,1768977039701,-500.0,0.0001789,2]
[402906770,1768977039710,-240.53313232,0.0001789,2]
[402906772,1768977039719,-500.0,0.0001789,2]
[402906774,1768977039729,-500.0,0.0001789,2]
[402906776,1768977039738,-500.0,0.0001789,2]
[402906778,1768977039747,-6081.0,0.000179,2]
[402906780,1768977039756,-216.91,0.000179,2]
[402906782,1768977039766,-400.0,0.000179,6]
[402906784,1768977039775,-12329.04714575,0.000179,2]
[402906786,1768977039785,-214.28576062,0.000179,2]
[402906788,1768977039795,-2343.6477698,0.000179,2]
[402906790,1768977039804,-664.5234867,0.000179,2]
[402906792,1768977039813,-11992.72511367,0.000179,2]
[402906794,1768977039822,-703.49389554,0.000179,2]
[402906796,1768977039831,-2343.64776979,0.00017904,2]
[402906798,1768977039840,-2343.64776979,0.00017908,2]
[402906800,1768977039850,-2343.64776979,0.00017911,2]
[402906802,1768977039859,-2343.64776979,0.00017915,2]
[402906804,1768977039868,-554.40683791,0.00017919,2]
[402906806,1768977039878,-2343.64776979,0.00017919,2]
[402906809,1768977039887,-500.0,0.00017945,2]
[402906811,1768977039896,-500.0,0.00017945,2]
[402906813,1768977039905,-500.0,0.00017945,2]
[402906815,1768977039914,-500.0,0.00017945,2]
[402906818,1768977039924,-150.0,0.00017973,2]
[402906820,1768977039933,-150.0,0.00017973,2]
[402906822,1768977039942,-111870.7603652,0.0001799,2]
[402906824,1768977039951,-1267.6988465,0.00017999,2]
[402906827,1768977039960,-3324.5600244,0.00017999,2]
[402906829,1768977039969,-69717.7052515,0.00017999,2]
[402906831,1768977039978,-6307.6281981,0.00017999,2]
[402906833,1768977039987,-2468.7003362,0.00017999,2]
[402906835,1768977039996,-1264.0,0.00018,2]
[402906837,1768977040005,-1264.0,0.00018,2]
[402906839,1768977040014,-500.0,0.00018,2]
[402906841,1768977040023,-500.0,0.00018,2]
[402906843,1768977040032,-500.0,0.00018,2]
[402906845,1768977040041,-500.0,0.00018,2]
[402906847,1768977040050,-411497.9586254,0.00018,2]
[402906849,1768977040063,-446974.01360097,0.00018,2]
[402906851,1768977040072,-193.033,0.00018,2]
[402906854,1768977040085,-151.0,0.00018,2]
[402906856,1768977040094,-237.73121202,0.00018,2]
[402906858,1768977040103,-164.36721954,0.00018,2]
[402906860,1768977040112,-2363297.18792043,0.00018,2]
[402906863,1768977040139,-5137.86953541,0.00018,2]
[402906878,1768977040291,161.0,0.0001641,2]
[402906885,1768977040793,-588.0,0.00018,2]
[402906888,1768977040808,-5654.84793755,0.00018,2]
[402906890,1768977040819,-523.34287504,0.00018,2]
[402906892,1768977040831,-636.47375522,0.00018,2]
[402906909,1768977040986,-1069.89244535,0.00018,2]
[402906912,1768977040998,-449.55,0.00018,2]
[402907133,1768977043325,-1410.45805499,0.000167,2]
[402907135,1768977043335,-84.03094501,0.00017328,2]
[402907137,1768977043347,-66.96905499,0.00017328,2]
[402907140,1768977043361,-663.38562354,0.00018,2]
[402907142,1768977043372,-333.44283979,0.00018,2]
[402907144,1768977043383,-500.0,0.00018,2]
[402907146,1768977043393,-616.77071845,0.00018,2]
[402907148,1768977043404,-615.06551367,0.00018,2]
[402907150,1768977043415,-2004.87526858,0.00018,2]
[402907152,1768977043429,-1554.87227009,0.00018,2]
[402907155,1768977043447,-856.19639307,0.00018,2]
[402907157,1768977043458,-6742.913408,0.00018,2]
[402907158,1768977043468,-1161.0,0.00018,2]
[402907159,1768977043483,-1058.32946893,0.00018,2]
[402907160,1768977043495,-621.71764742,0.00018,2]
[402907161,1768977043506,-334.64227692,0.00018,2]
[402907162,1768977043516,-5858.51232533,0.00018,2]
[402907255,1768977045985,-2174.7522056,0.00018,2]
[402907259,1768977415100,835.01,0.00016088,2]
[402907260,1768977457928,180.82,0.00015975,2]
[402907261,1768977933182,1000.0,0.00015791,2]
[402907262,1768977948892,174.26,0.00016265,2]
[402907266,1768978021986,798.57290548,0.00016379,2]
[402907294,1768978179198,-289.0,0.00016491,2]
[402907295,1768978179219,-151.0,0.00016491,2]
[402907296,1768978179240,-356.39989859,0.00016491,2]
[402907297,1768978179260,-200.0,0.00016491,2]
[402907298,1768978179281,-195.0,0.00016491,2]
[402907299,1768978179303,-330.82977104,0.00016491,2]
[402907300,1768978179326,-200.0,0.00016491,2]
[402907301,1768978179347,-200.0,0.00016491,2]
[402907302,1768978179367,-204.04358045,0.00016491,2]
[402907303,1768978179387,-195.0,0.00016491,2]
[402907304,1768978179406,-784.26,0.00016491,2]
[402907305,1768978179425,-150.0,0.00016573,2]
[402907306,1768978193088,-10000.0,0.00016586,2]
[402907307,1768978195378,-4044.61922147,0.00016586,2]
[402907308,1768978195402,-5955.38077853,0.00016595,2]
[402907309,1768978196255,-10000.0,0.00016595,2]
[402907310,1768978196787,-10000.0,0.00016595,2]
[402907311,1768978197381,-10000.0,0.00016595,2]
[402907312,1768978197986,-10000.0,0.00016595,2]
[402907313,1768978198377,-10000.0,0.00016595,2]
[402907314,1768978198902,-10000.0,0.00016595,2]
[402907315,1768978200015,-10000.0,0.00016595,2]
[402907316,1768978201363,-10000.0,0.00016595,2]
[402907317,1768978213877,-300.0,0.00016594,2]
[402907318,1768978213901,-1200.0,0.00016594,2]
[402907319,1768978213926,-218.0,0.00016595,2]
[402907323,1768978232183,-151.0,0.00016592,2]
[402907324,1768978232193,-1193.48,0.00016595,2]
[402907325,1768978232205,-17261.22683752,0.00016595,2]
[402907326,1768978232220,-27132.97156415,0.00016595,2]
[402907330,1768978232713,-885.66,0.00016595,2]
[402907331,1768978232750,-1620.47809402,0.00016595,2]
[402907332,1768978232770,-2141.02208517,0.00016595,2]
[402907333,1768978232812,-945.87538785,0.00016595,2]
[402907359,1768978238717,-649.99897873,0.00016594,2]
[402907361,1768978238727,-500.0,0.00016594,2]
[402907363,1768978238737,-358.02032411,0.00016594,2]
[402907365,1768978238747,-269.98504214,0.00016594,2]
[402907367,1768978238758,-141.52235767,0.00016594,2]
[402907369,1768978238769,-611.62832767,0.00016594,2]
[402907371,1768978238778,-42.62303283,0.00016594,2]
[402907373,1768978238794,-184.62820013,0.00016594,2]
[402907374,1768978238803,-218.73158337,0.00016594,2]
[402907375,1768978238816,-281.26841663,0.00016594,2]
[402907376,1768978238825,-465.9956354,0.00016594,2]
[402907377,1768978238835,-500.0,0.00016594,2]
[402907378,1768978238844,-340.85726803,0.00016594,2]
[402907379,1768978238854,-365.53975245,0.00016594,2]
[402907380,1768978238863,-500.0,0.00016594,2]
[402907381,1768978238873,-500.0,0.00016594,2]
[402907382,1768978238882,-500.0,0.00016594,2]
[402907383,1768978238891,-566.96081786,0.00016594,2]
[402907384,1768978238900,-500.0,0.00016594,2]
[402907385,1768978238909,-383.07469877,0.00016594,2]
[402907386,1768978238928,-116.92530123,0.00016594,2]
[402907387,1768978238937,-500.0,0.00016594,2]
[402907388,1768978238947,-500.0,0.00016594,2]
[402907389,1768978238957,-500.0,0.00016594,2]
[402907390,1768978238966,-500.0,0.00016594,2]
[402907391,1768978238976,-500.0,0.00016594,2]
[402907392,1768978238985,-500.0,0.00016594,2]
[402907393,1768978238994,-500.0,0.00016594,2]
[402907394,1768978239004,-500.0,0.00016594,2]
[402907395,1768978239013,-500.0,0.00016594,2]
[402907396,1768978239022,-500.0,0.00016594,2]
[402907397,1768978239032,-500.0,0.00016594,2]
[402907398,1768978239041,-500.0,0.00016594,2]
[402907399,1768978239050,-500.0,0.00016594,2]
[402907400,1768978239060,-500.0,0.00016594,2]
[402907401,1768978239070,-500.0,0.00016594,2]
[402907402,1768978239080,-500.0,0.00016594,2]
[402907403,1768978239090,-500.0,0.00016594,2]
[402907404,1768978239099,-500.0,0.00016594,2]
[402907405,1768978239113,-500.0,0.00016594,2]
[402907406,1768978239123,-500.0,0.00016594,2]
[402907407,1768978239133,-500.0,0.00016594,2]
[402907408,1768978239144,-500.0,0.00016594,2]
[402907409,1768978239154,-500.0,0.00016594,2]
[402907410,1768978239164,-500.0,0.00016594,2]
[402907411,1768978239175,-500.0,0.00016594,2]
[402907412,1768978239185,-500.0,0.00016594,2]
[402907413,1768978239195,-500.0,0.00016594,2]
[402907414,1768978239205,-500.0,0.00016594,2]
[402907415,1768978239215,-500.0,0.00016594,2]
[402907416,1768978239226,-500.0,0.00016594,2]
[402907417,1768978239236,-500.0,0.00016594,2]
[402907418,1768978239248,-500.0,0.00016594,2]
[402907419,1768978239258,-500.0,0.00016594,2]
[402907420,1768978239268,-500.0,0.00016594,2]
[402907421,1768978239277,-500.0,0.00016594,2]
[402907422,1768978239287,-500.0,0.00016594,2]
[402907423,1768978239296,-862645.90525276,0.00016595,2]
[402907424,1768978239306,-210.0,0.00016686,2]
[402907425,1768978239317,-1200.0,0.00016686,2]
[402907426,1768978239327,-500.0,0.00016687,2]
[402907427,1768978239336,-500.0,0.00016687,2]
[402907428,1768978239346,-500.0,0.00016687,2]
[402907429,1768978239355,-500.0,0.00016687,2]
[402907430,1768978239364,-200.0,0.00016687,2]
[402907431,1768978239374,-500.0,0.00016687,2]
[402907432,1768978239383,-500.0,0.00016687,2]
[402907433,1768978239392,-151.0,0.00016687,2]
[402907434,1768978239402,-151.0,0.00016687,2]
[402907435,1768978239411,-500.0,0.00016687,2]
[402907436,1768978239421,-151.0,0.00016687,2]
[402907437,1768978239431,-500.0,0.00016687,2]
[402907438,1768978239442,-151.0,0.00016687,2]
[402907439,1768978239452,-500.0,0.00016687,2]
[402907440,1768978239461,-151.0,0.00016687,2]
[402907441,1768978239471,-500.0,0.00016687,2]
[402907442,1768978239480,-151.0,0.00016687,2]
[402907443,1768978239495,-151.0,0.00016687,2]
[402907444,1768978239505,-151.12308869,0.00016687,2]
[402907445,1768978239515,-151.0,0.00016687,2]
[402907446,1768978239524,-151.0,0.00016687,2]
[402907447,1768978239535,-151.0,0.00016687,2]
[402907448,1768978239545,-151.0,0.00016687,2]
[402907449,1768978239555,-500.0,0.00016687,2]
[402907450,1768978239565,-500.0,0.00016687,2]
[402907451,1768978239574,-200.0,0.00016687,2]
[402907452,1768978239586,-500.0,0.00016687,2]
[402907453,1768978239597,-500.0,0.00016687,2]
[402907454,1768978239607,-500.0,0.00016687,2]
[402907455,1768978239616,-500.0,0.00016687,2]
[402907456,1768978239626,-500.0,0.00016687,2]
[402907457,1768978239635,-500.0,0.00016687,2]
[402907458,1768978239647,-500.0,0.00016687,2]
[402907459,1768978239657,-500.0,0.00016687,2]
[402907460,1768978239666,-500.0,0.00016687,2]
[402907461,1768978239675,-202.40369951,0.00016687,2]
[402907462,1768978239685,-500.0,0.00016687,2]
[402907463,1768978239694,-490.35,0.00016687,2]
[402907464,1768978239704,-263.14730428,0.00016691,2]
[402907465,1768978239713,-1093.188,0.00016695,2]
[402907466,1768978239723,-165.87,0.00016695,2]
[402907467,1768978239733,-9430.75,0.00016695,2]
[402907468,1768978239743,-2500.0,0.00016698,2]
[402907469,1768978239752,-627.54405676,0.00016698,2]
[402907470,1768978239763,-800.0,0.000167,2]
[402907471,1768978239773,-18476.623995,0.000167,2]
[402907472,1768978239783,-14044.61922147,0.00016732,2]
[402907473,1768978239795,-695.97431965,0.00016794,2]
[402907474,1768978239805,-1752.33124377,0.00016795,2]
[402907475,1768978239814,-151.0,0.00016796,2]
[402907476,1768978239824,-43631.16471694,0.00016797,2]
[402907477,1768978239835,-500.0,0.00016797,2]
[402907478,1768978239844,-500.0,0.00016797,2]
[402907479,1768978239854,-500.0,0.00016797,2]
[402907480,1768978239865,-510.38598485,0.00016797,2]
[402907481,1768978239880,-500.0,0.00016797,2]
[402907482,1768978239889,-509.68083814,0.00016797,2]
[402907483,1768978239899,-513.96107925,0.00016797,2]
[402907484,1768978239908,-500.0,0.00016797,2]
[402907485,1768978239918,-500.0,0.00016797,2]
[402907486,1768978239927,-500.0,0.00016797,2]
[402907487,1768978239937,-549.27828535,0.00016797,2]
[402907488,1768978239947,-161.0,0.000168,2]
[402907489,1768978239957,-200.0,0.000168,6]
[402907490,1768978239967,-150.00014031,0.00016825,2]
[402907491,1768978239977,-18476.62399491,0.00016833,2]
[402907492,1768978239986,-14044.61922147,0.00016878,2]
[402907493,1768978239996,-2107.44653221,0.00016879,2]
[402907494,1768978240006,-3717.78548643,0.00016879,2]
[402907495,1768978240017,-5561.58474155,0.00016879,2]
[402907496,1768978240027,-7525.0197,0.00016879,2]
[402907497,1768978240037,-835.01,0.00016893,2]
[402907498,1768978240048,-24838.9578,0.00016897,2]
[402907499,1768978240058,-1000.0,0.00016897,2]
[402907500,1768978240068,-400.0,0.000169,6]
[402907501,1768978240077,-162.41,0.000169,2]
[402907502,1768978240087,-150.99,0.00016922,2]
[402907503,1768978240096,-9999.99,0.00016922,2]
[402907504,1768978240106,-150.99,0.00016922,2]
[402907505,1768978240115,-3304.12,0.00016922,2]
[402907506,1768978240125,-3433.33,0.00016922,2]
[402907507,1768978240135,-9822.79,0.00016922,2]
[402907508,1768978240145,-513.95,0.00016922,2]
[402907509,1768978240154,-151.0,0.00016932,2]
[402907510,1768978240164,-151.0,0.00016932,2]
[402907511,1768978240173,-151.0,0.00016933,2]
[402907512,1768978240183,-16300.0569379,0.00016934,2]
[402907513,1768978240192,-490.35,0.00016961,2]
[402907514,1768978240202,-18476.62399491,0.00016967,2]
[402907515,1768978240211,-151.0,0.00016976,2]
[402907516,1768978240220,-158.51,0.00016978,2]
[402907517,1768978240230,-162.89,0.00016981,2]
[402907518,1768978240240,-500.0,0.00016997,2]
[402907519,1768978240249,-501.59915555,0.00016997,2]
[402907520,1768978240258,-500.0,0.00016997,2]
[402907521,1768978240269,-500.0,0.00016997,2]
[402907522,1768978240278,-500.0,0.00016997,2]
[402907523,1768978240287,-500.0,0.00016997,2]
[402907524,1768978240297,-511.10431069,0.00016997,2]
[402907525,1768978240307,-250.0,0.00017,2]
[402907526,1768978240318,-14044.61922147,0.00017024,2]
[402907527,1768978240327,-305.22366862,0.00017063,2]
[402907528,1768978240338,-175.58159846,0.00017073,2]
[402907529,1768978240348,-500.94467747,0.00017073,2]
[402907530,1768978240358,-173.55705579,0.00017073,2]
[402907531,1768978240368,-501.21925322,0.00017073,2]
[402907532,1768978240379,-173.35264112,0.00017073,2]
[402907533,1768978240389,-170.10703562,0.00017073,2]
[402907534,1768978240399,-501.12504577,0.00017073,2]
[402907535,1768978240408,-500.6119985,0.00017073,2]
[402907536,1768978240417,-500.59297437,0.00017073,2]
[402907537,1768978240426,-501.78111653,0.00017073,2]
[402907538,1768978240436,-500.82647846,0.00017073,2]
[402907539,1768978240446,-501.73705507,0.00017073,2]
[402907540,1768978240456,-502.32372239,0.00017073,2]
[402907541,1768978240467,-167.87587796,0.00017073,2]
[402907542,1768978240477,-225.1354509,0.00017073,2]
[402907543,1768978240487,-166.23513753,0.00017073,2]
[402907544,1768978240497,-500.0,0.00017073,2]
[402907545,1768978240507,-500.0,0.00017073,2]
[402907546,1768978240518,-164.44455647,0.00017073,2]
[402907547,1768978240529,-500.70403813,0.00017073,2]
[402907548,1768978240539,-500.6007219,0.00017073,2]
[402907549,1768978240548,-177.45121096,0.00017073,2]
[402907550,1768978240558,-501.62278833,0.00017073,2]
[402907551,1768978240567,-500.89562511,0.00017073,2]
[402907552,1768978240576,-500.0,0.00017073,2]
[402907553,1768978240586,-501.49298177,0.00017073,2]
[402907554,1768978240595,-500.0,0.00017073,2]
[402907555,1768978240605,-500.54717654,0.00017073,2]
[402907556,1768978240615,-500.0,0.00017073,2]
[402907557,1768978240624,-217.33264691,0.00017073,2]
[402907558,1768978240633,-500.0,0.00017073,2]
[402907559,1768978240643,-166.57282596,0.00017073,2]
[402907560,1768978240653,-500.47917453,0.00017073,2]
[402907561,1768978240662,-502.57997666,0.00017073,2]
[402907562,1768978240671,-500.36019469,0.00017073,2]